Cogmind - Beta 10.2 @@@ ROGUE MODE // 2021.09.02 @ 16:19:02 Player: Cracklepappy Result: Destroyed by H-55 Commando with Gauss Rifle Performance ------------- Evolutions (1) 500 Regions Visited (6) 1200 Robots Destroyed (56) 280 Value Destroyed (1508) 1508 Prototype IDs (3) 60 Alien Tech Used (0) 0 Bonus (0) 0 TOTAL SCORE: 3548 Bonus ------- None Cogmind --------- Core Integrity 0/400 Matter 280/300 Energy 239/280 System Corruption 0% Temperature Cool (0) Movement Treading (200) Ox2 Location -8/Mines Parts ------- > --- POWER (1) -------- Heavy Ion Engine > --- PROPULSION (2) --- Light Treads Improved Treads > --- UTILITY (4) ------ Improved Heat Sink Large Storage Unit High-capacity Storage Unit High-capacity Storage Unit > --- WEAPON (2) ------- EM Shotgun EM Shotgun > --- INVENTORY (26) --- Heavy Ion Engine Light Angular Momentum Engine Fission Core Fission Core Fission Core Light Treads Carbon-fiber Leg Medium Storage Unit Large Storage Unit High-capacity Storage Unit High-capacity Storage Unit High-capacity Storage Unit Large Matter Pod (150) Signal Interpreter Improved Targeting Computer Light Armor Plating System Shield Advanced Beam Cannon Advanced Beam Cannon Heavy Assault Rifle Heavy Assault Rifle Gauss Rifle Improved Datajack Katana Peak State ------------ > --- POWER ------------ Heavy Ion Engine > --- PROPULSION ------- Light Treads Improved Treads > --- UTILITY ---------- Improved Heat Sink Large Storage Unit High-capacity Storage Unit High-capacity Storage Unit > --- WEAPON ----------- EM Shotgun Improved EM Shotgun > --- INVENTORY -------- Heavy Ion Engine Light Angular Momentum Engine Fission Core Fission Core Fission Core Light Treads Carbon-fiber Leg Medium Storage Unit Large Storage Unit High-capacity Storage Unit High-capacity Storage Unit High-capacity Storage Unit Large Matter Pod Signal Interpreter Improved Targeting Computer Light Armor Plating System Shield EM Shotgun EM Shotgun Advanced Beam Cannon Advanced Beam Cannon Heavy Assault Rifle Heavy Assault Rifle Improved Datajack Katana [Rating: 23] Favorites ----------- Power Heavy Ion Engine Engine Heavy Ion Engine Propulsion Light Treads Treads Light Treads Leg Improved Aluminum Leg Wheel Wheel Utility Large Storage Unit Device Improved Terrain Scanner Storage Large Storage Unit Protection Light Armor Plating Weapon EM Shotgun Energy Gun EM Shotgun Energy Cannon Advanced Beam Cannon Ballistic Gun Light Assault Rifle Launcher Grenade Launcher Special Weapon Mining Laser Slashing Weapon Katana Build | -11 -10 -10 -9 -9 -9 -8 ------- Run | Scr Mat Min Mat Min Exi Min Slots Evolved 2 | . . . 2 . . . Power . | . . . . . . . Propulsion . | . . . . . . . Utility 2 | . . . 2 . . . Weapon . | . . . . . . . Parts Attached 61 | 8 12 1 34 . 2 4 Power 7 | 2 1 . 4 . . . Engine 7 | 2 1 . 4 . . . Core . | . . . . . . . Reactor . | . . . . . . . Propulsion 14 | 2 3 1 8 . . . Treads 9 | 1 1 . 7 . . . Leg 3 | . 2 1 . . . . Wheel 2 | 1 . . 1 . . . Hover . | . . . . . . . Flight . | . . . . . . . Utility 15 | 2 2 . 8 . 2 1 Device 3 | 1 . . 1 . . 1 Storage 9 | 1 2 . 4 . 2 . Processor . | . . . . . . . Hackware . | . . . . . . . Protection 3 | . . . 3 . . . Artifact . | . . . . . . . Weapon 25 | 2 6 . 14 . . 3 Energy Gun 18 | 1 4 . 10 . . 3 Energy Cannon 1 | . . . 1 . . . Ballistic Gun 2 | 1 . . 1 . . . Ballistic Cannon . | . . . . . . . Launcher 1 | . 1 . . . . . Special Weapon 2 | . 1 . 1 . . . Impact Weapon . | . . . . . . . Slashing Weapon 1 | . . . 1 . . . Piercing Weapon . | . . . . . . . Special Melee Weapon . | . . . . . . . Unidentified Prototypes 3 | . . . 3 . . . Parts Lost 27 | . 8 . 15 . . 4 Power 3 | . 1 . 2 . . . Propulsion 6 | . 2 . 4 . . . Utility 4 | . . . 3 . . 1 Weapon 14 | . 5 . 6 . . 3 Highest Loss Streak 7 | . 3 . 7 . . 2 Average Slot Usage (%) 96 | . 93 100 92 100 100 99 Engine 10 | . 13 14 8 11 11 11 Treads 17 | . 17 . 12 22 22 22 Leg 4 | . 7 28 5 . . . Wheel 1 | . . . 3 . . . Device 6 | . 14 14 7 . . 9 Storage 25 | . 14 14 22 33 33 33 Protection 7 | . . . 13 11 11 1 Energy Gun 18 | . 17 28 14 22 22 21 Ballistic Gun 1 | . 6 . . . . . Slashing Weapon 1 | . . . 3 . . . Naked Turns . | . . . . . . . Heaviest Build 97 | 12 24 24 65 57 97 97 Greatest Support 43 | 20 40 26 43 43 43 43 Greatest Overweight (x) 5 | . . . 5 1 2 2 Average Overweight (x) 1 | . . . 1 1 1 2 Largest Inventory Capacity 26 | 6 10 10 22 20 26 26 Average Capacity 16 | 5 6 10 15 20 24 26 Most Carried 26 | 6 10 10 18 20 26 26 Average Carried 15 | 5 5 9 14 19 23 25 Final Capacity 26 | 6 10 10 20 20 26 26 Final Carried 26 | 6 10 10 18 20 26 24 Class Distribution -------------------- 44% | Hauler-Mutant 35% | Mutant 19% | Scavenger-Mutant Dominant Class ---------------- Mutant | -10/Materials Mutant | -10/Mines Scavenger-Mutant | -9/Materials Hauler-Mutant | -9/Mines Hauler-Mutant | -9/Exiles Hauler-Mutant | -8/Mines Resources | -11 -10 -10 -9 -9 -9 -8 ----------- Run | Scr Mat Min Mat Min Exi Min Matter Collected 763 | 284 144 10 275 . 20 30 Remotely . | . . . . . . . Salvage Created 1778 | 151 569 . 742 . . 316 Parts 122 | 15 36 . 56 . . 15 Haulers Intercepted 2 | . 1 . 1 . . . Recyclers Shooed 2 | . . . 1 . . 1 Parts Field Recycled . | . . . . . . . Retrieved Matter . | . . . . . . . Parts Self-Destructed . | . . . . . . . Prevented . | . . . . . . . Kills | -11 -10 -10 -9 -9 -9 -8 ------- Run | Scr Mat Min Mat Min Exi Min Combat Hostiles Destroyed 42 | . 18 . 17 . . 7 Melee 8 | . . . 8 . . . Guns 21 | . 8 . 7 . . 6 Cannons 7 | . 5 . 2 . . . AOE 5 | . 5 . . . . . Classes Destroyed 10 | 2 3 . 4 . . 1 Worker 2 | . . . 1 . . 1 Tunneler 5 | 5 . . . . . . Hauler 2 | . 1 . 1 . . . Recycler 1 | 1 . . . . . . Watcher 4 | . . . 4 . . . Swarmer 10 | . 3 . 4 . . 3 Grunt 23 | . 15 . 6 . . 2 Duelist 1 | . . . 1 . . . Sentry 6 | . . . 6 . . . Hunter 2 | . . . . . . 2 Best Kill Streak 5 | 2 5 . 4 . . 4 Combat Bots Only 5 | . 5 . 4 . . 3 Max Kills in Single Turn 2 | 1 2 . 1 . . 2 Gunslinging 1 | . . . . . . 1 Exploded 2 | . 2 . . . . . Melee 1 | . . . 1 . . . Uniques/NPCs Destroyed . | . . . . . . . Combat | -11 -10 -10 -9 -9 -9 -8 -------- Run | Scr Mat Min Mat Min Exi Min Damage Taken 3310 | . 978 . 1603 10 . 719 Core 624 | . 207 . 288 . . 129 Absorbed by Shields . | . . . . . . . Core Remaining (%) 58 | 100 . 17 . . . . Volleys Fired 142 | 22 46 . 47 . . 27 Largest 2 | 2 2 . 2 . . 2 Hottest 140 | 60 140 . 130 . . 90 Shots Fired 241 | 35 75 . 77 . . 54 Gun 216 | 35 65 . 62 . . 54 Cannon . | . . . . . . . Launcher 3 | . 3 . . . . . Special 22 | . 7 . 15 . . . Kinetic 33 | 22 11 . . . . . Thermal 145 | 13 61 . 71 . . . Explosive 3 | . 3 . . . . . Electromagnetic 60 | . . . 6 . . 54 Robot Hit Streak 15 | 14 11 . 15 . . 15 Robot Miss Streak 4 | 3 2 . 4 . . 3 Penetration Max . | . . . . . . . Secondary Targets 3 | . . . . . . 3 Max Gunslinging Chain 1 | . . . . . . 1 Shots Hit Robots 191 | 24 57 . 67 . . 43 Core Hits 105 | 9 33 . 43 . . 20 Critical Hits 1 | . 1 . . . . . Critical Kills . | . . . . . . . Critical Parts Destroyed 1 | . 1 . . . . . Melee Attacks 19 | . . . 19 . . . Impact . | . . . . . . . Slashing 19 | . . . 19 . . . Piercing . | . . . . . . . Sneak Attacks . | . . . . . . . Combat Hostiles . | . . . . . . . Follow-up Attacks . | . . . . . . . Damage Inflicted 3026 | 246 874 . 1250 . . 656 Guns 2067 | 246 528 . 637 . . 656 Cannons . | . . . . . . . Explosions 199 | . 199 . . . . . Melee 436 | . . . 436 . . . Ramming 60 | . 3 . 57 . . . Kinetic 177 | 111 66 . . . . . Thermal 1418 | 135 606 . 677 . . . Explosive 199 | . 199 . . . . . Electromagnetic 736 | . . . 80 . . 656 Impact . | . . . . . . . Slashing 436 | . . . 436 . . . Piercing . | . . . . . . . Highest Corruption 2 | . 2 2 . . . . Average Corruption 1 | . 1 2 . . . . Corruption Purged . | . . . . . . . Effects 3 | . 1 2 . . . . Message Errors 1 | . . 1 . . . . Data Loss (minor) 2 | . 1 1 . . . . Overload Shots . | . . . . . . . Overflow Damage 20 | . 8 . 12 . . . Projectiles . | . . . . . . . Explosions 8 | . 8 . . . . . Melee 12 | . . . 12 . . . Knockbacks 1 | . . . 1 . . . Impact 1 | . . . 1 . . . Kinetic . | . . . . . . . Secondary . | . . . . . . . Self-Inflicted Damage 191 | . 191 . . . . . Shots 5 | . 5 . . . . . Rammed 16 | . . . 16 . . . Targets Rammed 18 | . 1 . 17 . . . Kicked 1 | . 1 . . . . . Crushed 1 | . . . 1 . . . Highest Temperature 493 | 20 220 . 33 . . 493 Average Temperature 99 | 15 70 . 12 . . 205 Received Heat Transfer 1107 | . 405 . 579 6 . 117 Effects 9 | . . . . . . 9 Shutdowns 2 | . . . . . . 2 Energy Bleed 1 | . . . . . . 1 Interference 2 | . . . . . . 2 Damage (major) 4 | . . . . . . 4 Siege Activations . | . . . . . . . Robots Corrupted 1 | . . . . . . 1 Combat Hostiles 1 | . . . . . . 1 Parts Fried 5 | . . . 1 . . 4 Impact Corruptions . | . . . . . . . Robots Melted . | . . . . . . . Combat Hostiles . | . . . . . . . Parts Melted 6 | . 2 . 4 . . . Heat Transferred 3654 | 300 1350 . 2004 . . . Parts Sabotaged . | . . . . . . . Parts Stolen . | . . . . . . . Parts Stripped . | . . . . . . . Power Chain Reactions 1 | . 1 . . . . . Missiles Intercepted . | . . . . . . . Alert | -11 -10 -10 -9 -9 -9 -8 ------- Run | Scr Mat Min Mat Min Exi Min Peak Influence 315 | 30 315 122 267 60 . 210 Initial 122 | . 19 122 47 60 . . Average 107 | 13 111 122 151 48 . 95 Maximum Alert Level 1 | . 1 . 1 . . 1 Low Security (%) 86 | 100 73 100 82 100 . 88 Level 1 13 | . 26 . 17 . . 11 Level 2 . | . . . . . . . Level 3 . | . . . . . . . Level 4 . | . . . . . . . Level 5 . | . . . . . . . High Security . | . . . . . . . Max Security . | . . . . . . . Squads Dispatched 8 | . 6 1 1 . . . Investigation 3 | . 2 1 . . . . Extermination . | . . . . . . . Reinforcement 5 | . 4 . 1 . . . Assault . | . . . . . . . Garrison . | . . . . . . . Intercept . | . . . . . . . Construction Impeded . | . . . . . . . Haulers Reinforced . | . . . . . . . Stealth | -11 -10 -10 -9 -9 -9 -8 --------- Run | Scr Mat Min Mat Min Exi Min Distress Signals 6 | . . . 6 . . . Communications Jammed . | . . . . . . . Distress Signals . | . . . . . . . Times Spotted 75 | . 29 . 34 3 . 9 Peak Tracking Total 7 | . 6 . 7 2 . 3 Tactical Retreats 3 | . 1 . 2 . . . Traps | -11 -10 -10 -9 -9 -9 -8 ------- Run | Scr Mat Min Mat Min Exi Min Traps Triggered 5 | . 5 . . . . . Indirectly . | . . . . . . . Trap Hack Attempts . | . . . . . . . Triggered . | . . . . . . . Disarmed . | . . . . . . . Reprogrammed . | . . . . . . . Reused . | . . . . . . . Traps Extracted . | . . . . . . . Installed . | . . . . . . . Triggered . | . . . . . . . Machines | -11 -10 -10 -9 -9 -9 -8 ---------- Run | Scr Mat Min Mat Min Exi Min Machines Disabled 2 | . 2 . . . . . Max in Single Turn 2 | . 2 . . . . . Machines Sabotaged . | . . . . . . . Garrisons Compromised . | . . . . . . . Overloaded Fab Kills . | . . . . . . . Fab Network Shutdowns . | . . . . . . . Hacking | -11 -10 -10 -9 -9 -9 -8 --------- Run | Scr Mat Min Mat Min Exi Min Machines Accessed 9 | . 3 1 4 . 1 . Terminals 5 | . 3 . 2 . . . Fabricators . | . . . . . . . Repair Stations 1 | . . . 1 . . . Recycling Units . | . . . . . . . Scanalyzers 1 | . . . 1 . . . Garrison Access . | . . . . . . . Total Hacks 24 | . 9 1 13 . 1 . Successful 17 | . 7 1 8 . 1 . Failed 7 | . 2 . 5 . . . Catastrophic . | . . . . . . . Database Lockouts . | . . . . . . . Manual 11 | . 6 . 5 . . . Terminals 16 | . 9 . 7 . . . Fabricators . | . . . . . . . Repair Stations 1 | . . . 1 . . . Recycling Units . | . . . . . . . Scanalyzers 5 | . . . 5 . . . Garrison Access . | . . . . . . . Terminal Hacks 8 | . 4 1 2 . 1 . Record 1 | . . . . . 1 . Part Schematic 1 | . 1 . . . . . Open Door 1 | . . 1 . . . . Branch Access Points 1 | . 1 . . . . . Locate Traps 4 | . 2 . 2 . . . Fabricator Hacks . | . . . . . . . Repair Station Hacks 1 | . . . 1 . . . Refit 1 | . . . 1 . . . Recycling Unit Hacks . | . . . . . . . Scanalyzer 4 | . . . 4 . . . Insert Component 2 | . . . 2 . . . Analyze 2 | . . . 2 . . . Garrison Access Hacks . | . . . . . . . Unauthorized Hacks 4 | . 3 . 1 . . . Terminals 4 | . 3 . 1 . . . Track 4 | . 3 . 1 . . . Fabricators . | . . . . . . . Repair Stations . | . . . . . . . Recycling Units . | . . . . . . . Scanalyzers . | . . . . . . . Garrison Access . | . . . . . . . Data Cores Recovered . | . . . . . . . Used . | . . . . . . . Hacking Detections 6 | . 3 . 3 . . . Full Trace Events . | . . . . . . . Feedback Events . | . . . . . . . Feedback Blocked . | . . . . . . . Robot Schematics Acquired . | . . . . . . . Robots Built . | . . . . . . . Matter . | . . . . . . . Time . | . . . . . . . Total Robot Build Rating . | . . . . . . . Part Schematics Acquired 3 | . 1 . 2 . . . Parts Built . | . . . . . . . Matter . | . . . . . . . Time . | . . . . . . . Total Part Build Rating . | . . . . . . . Parts Repaired . | . . . . . . . Time . | . . . . . . . Parts Recycled . | . . . . . . . Recycled Matter . | . . . . . . . Retrieved Matter . | . . . . . . . Retrieved Components . | . . . . . . . Parts Scanalyzed 2 | . . . 2 . . . Part Schematics Acquired 2 | . . . 2 . . . Parts Damaged . | . . . . . . . Bothacking | -11 -10 -10 -9 -9 -9 -8 ------------ Run | Scr Mat Min Mat Min Exi Min Used RIF Installer . | . . . . . . . Robots Hacked . | . . . . . . . Non-combat . | . . . . . . . Combat . | . . . . . . . Robot Hacks Applied . | . . . . . . . Relay Couplers Released . | . . . . . . . Robots Rewired . | . . . . . . . Allies Hacked . | . . . . . . . Hacks Repelled . | . . . . . . . Allies | -11 -10 -10 -9 -9 -9 -8 -------- Run | Scr Mat Min Mat Min Exi Min Total Allies 1 | . . . . 1 . . Largest Group 1 | . . . . 1 1 . Highest-Rated Group 31 | . . . . 31 31 . Highest-Rated Ally 31 | . . . . 31 31 . Total Orders . | . . . . . . . Ally Attacks . | . . . . . . . Total Damage . | . . . . . . . Kills . | . . . . . . . Allies Corrupted . | . . . . . . . Allies Melted . | . . . . . . . Intel | -11 -10 -10 -9 -9 -9 -8 ------- Run | Scr Mat Min Mat Min Exi Min Robot Analysis Total . | . . . . . . . Derelict Logs Recovered 1 | . . . . 1 . . Drone Launches . | . . . . . . . Drone Recoveries . | . . . . . . . Exploration | -11 -10 -10 -9 -9 -9 -8 ------------- Run | Scr Mat Min Mat Min Exi Min Turns Passed 4814 | 341 786 162 1485 496 855 689 Spaces Moved 2234 | 175 344 132 576 269 442 296 Core 12 | 12 . . . . . . Treads 1798 | 161 226 . 404 269 442 296 Legs 380 | . 118 132 130 . . . Wheels 44 | 2 . . 42 . . . Hover . | . . . . . . . Flight . | . . . . . . . Fastest Speed 50 | 50 120 120 110 180 180 200 Average Speed 170 | 151 146 120 168 180 190 200 Slowest Speed 200 | 160 160 120 200 180 200 200 Overloaded Moves . | . . . . . . . Propulsion Burnouts . | . . . . . . . Robots Hopped . | . . . . . . . Cave-ins Triggered . | . . . . . . . Exploration Rate (%) 52 | 7 68 49 48 70 60 63 Regions Visited 6 Branch Regions 4 Pre-discovered Areas 3 | . . 1 . 1 1 . Known Exits Taken 1 | . 1 . . . . . Unknown Exits Taken 5 | 1 . 1 1 1 1 . Scrap Searched 4 | . . . . 3 . 1 Spaces Dug . | . . . . . . . Terrain Destroyed 19 | . 14 . 5 . . . Melee . | . . . . . . . Projectile 6 | . 1 . 5 . . . AOE 13 | . 13 . . . . . Terrain Rammed . | . . . . . . . Walls Destroyed . | . . . . . . . Machines Disabled . | . . . . . . . Actions | -11 -10 -10 -9 -9 -9 -8 --------- Run | Scr Mat Min Mat Min Exi Min Total 2919 | 220 539 136 947 281 456 340 Wait 343 | . 115 . 205 11 . 12 Move 2228 | 174 343 131 575 268 441 296 Hop . | . . . . . . . Pick Up 71 | 12 16 2 29 2 9 1 Fast Attach 17 | 5 1 . 10 . . 1 Attach 25 | 2 7 . 13 . . 3 Detach 2 | . . . 2 . . . Swap 19 | 1 4 1 11 . 2 . Drop 35 | 4 6 2 19 . 4 . Fire 142 | 22 46 . 47 . . 27 Melee 19 | . . . 19 . . . Ram . | . . . . . . . Kick 1 | . 1 . . . . . Crush 17 | . . . 17 . . . Escape Stasis . | . . . . . . . Rewire . | . . . . . . . Trap . | . . . . . . . Miscellaneous . | . . . . . . . Route ------- -11/Scrapyard -10/Materials (discovered 3 exits: *Mat / *Min x2) -10/Mines -9/Materials (discovered 2 exits: [*Mat] / [*Min]) -9/Mines (discovered 3 exits: [*Mat x2] / *Exi) -9/Exiles -8/Mines History --------- Turn | Location | Event 15 | -11/Scrapyard | Discovered new exit (range 13) 342 | -11/Scrapyard | Entered Materials 343 | -10/Materials | Build established: Mutant 423 | -10/Materials | Discovered new exit (range 14) 554 | -10/Materials | Identified exit to Mines 702 | -10/Materials | Core integrity fell below 50% 725 | -10/Materials | Discovered new exit (range 15) 732 | -10/Materials | Lost 3 parts (3w) 959 | -10/Materials | Lost 3 parts (1p1n1w) 1101 | -10/Materials | Core integrity fell below 20% 1128 | -10/Materials | Entered Mines 1129 | -10/Mines | Learned location of Storage (-9) 1246 | -10/Mines | Discovered new exit (range 12) 1270 | -10/Mines | Met a Derelict shopkeep closing up shop 1290 | -10/Mines | Entered Materials 1290 | -9/Materials | Evolved 2 slots: Utility x2 1975 | -9/Materials | Build established: Scavenger-Mutant 2022 | -9/Materials | Lost 3 parts (1p1u1w) 2077 | -9/Materials | Core integrity fell below 50% 2125 | -9/Materials | Lost 7 parts (1p4n1u1w) 2408 | -9/Materials | Discovered new exit (range 12) 2757 | -9/Materials | Discovered new exit (range 6) 2775 | -9/Materials | Entered Mines 2795 | -9/Mines | Discovered new exit (range 10) 2968 | -9/Mines | Build established: Hauler-Mutant 3119 | -9/Mines | Discovered new exit (range 8) 3131 | -9/Mines | Escorted by a lone wolf Derelict 3248 | -9/Mines | Learned Materials trap positions 3257 | -9/Mines | Deemed a non-threat by the Exiles lab entrance 3259 | -9/Mines | Discovered new exit (range 5) 3271 | -9/Mines | Entered Exiles 3271 | -9/Exiles | Accompanied by 1 ally 3316 | -9/Exiles | Met 8R-AWN 3345 | -9/Exiles | Met EX-HEX 3401 | -9/Exiles | Met EX-BIN 3428 | -9/Exiles | Met EX-DEC 3435 | -9/Exiles | Learned location of Zion (-6) 3682 | -9/Exiles | Discovered new exit (range 10) 4126 | -9/Exiles | Entered Mines 4180 | -8/Mines | Core integrity fell below 20% 4815 | -8/Mines | Destroyed by H-55 Commando with Gauss Rifle Last Messages --------------- 04227_ Imp. EM Shotgun temporarily disabled. 04228_ Power failure, Hvy. Ion Engine shutdown. 04231_ Acquired Imp. Heat Sink. 04235_ Acquired Gauss Rifle. 04239_ R-06 Scavenger collects Particle Gun. 04240_ Acquired 10 matter. 04346_ Searching scrap... 04346_ Found Lgt. Cannon. 04346_ Found Hover Unit. 04346_ Found 29 Matter. 04438_ Slug penetrates Wall. 04444_ Penetrated by Slug. 04448_ H-55 Commando system terminally corrupted. 04448_ Carbon-fiber Leg fried. 04448_ Targeting Computer fried. 04557_ K-01 Serf collects debris. 04743_ K-01 Serf cleans the Laser Drill. 04809_ Slug penetrates Wall. 04812_ Imp. EM Shotgun destroyed. 04812_ EM Shotgun destroyed. Map ----- +----------------------------------------------------+ | | | | | | | | | | | | | | | | | | | | | | | | | | | | | | | | | ???????????????????????????????????????? | | ???????????????????????????????????????? | | ???????????????????????????????????????? | | ?????????#########?????????????????????? | | ?????????# #?????????????????????# | | ?????????#""" #??????????????????#### | | ?????????#""" #?????????????????## | | ???????????"" h #?????????????????# | | ????????????? #?????????????????# | | ??????????????#@#??????????????????# | | ??????????????# ########???????????## | | ??????????????# #????????????## | | ??????????????######## #?????????????# | | ?????????????????????# #?????????????# | | ?????????????????????# #?????????????## | | ?????????????????????# #############??## | | ?????????????????????# #???# | | ?????????????????????############# #???# | | ?????????????????????????????????# ##### | | ?????????????????????????????????# ## | | ????????????????????????????????## ## ## | | ???????????????????????????????## ## ## | | ???????????????????????????????# ## | | ???????????????????????????????# # | | ???????????????????????????????## """ | | ????????????????????????????????## """ | | ?????????????????????????????????# """ # | | ?????????????????????????????????# # | | ?????????????????????????????????# ## | | ?????????????????????????????????## ##? | | ??????????????????????????????????# #?? | | ??????????????????????????????????# #?? | | ??????????????????????????????????? ??? | | ??????????????????????????????????? ??? | +----------------------------------------------------+ Best States ------------- Heat Dissipation 42 Energy Generation 18 Energy Capacity 280 Matter Stores 300 Matter Capacity 300 Sight Range 16 Terrain Scan Range 16 Terrain Scan Density 10 Armor Coverage 150 Core Shielding 20 Evasion (%) 40 Recoil Reduction 2 Item Schematics ----------------- Hcp. Storage Unit | -10/Materials | Hacked Lrg. Storage Unit | -9/Materials | Scanalyzed Med. Storage Unit | -9/Materials | Scanalyzed Robot Schematics ------------------ None Fabricated ------------ Nothing Alien Tech Used ----------------- None Achievements -------------- None Challenges ------------ None Game ------ Seed GrenadeSupercompositeBooster Manual? 0 Play Time 00:28:37 Cumulative 286.9 hours Start 2021.09.02 @ 15:27:11 End 2021.09.02 @ 16:19:02 Sessions 1 Manual Loads 0 Difficulty Rogue Special Mode None Game No. 294 Rogue 294 Adventurer 0 Explorer 0 Win Type - Total 4 Types 4/0/0/0/0/0/0/0/0 Lore% 64 Gallery% 79 Achievement% 61 Wizard Run 0 Options --------- ASCII 0 Keyboard 0 Movement Numpad Keybinds 0 Fullscreen 2 Font 24/Terminus Map View 76x50 Tactical HUD 1 Map Filters NONE Filters NONE Steam 1 RUN: 28128ceb-f554-4f59-abfb-3036b37ba4c8